[Event "*** SCC Grand Prix: Titled Tuesday Blitz"]
[Site "Chess.com"]
[Date "2020.06.23"]
[Round "4"]
[White "petrkostenko"]
[Black "ChessQueen"]
[Result "1/2-1/2"]
[WhiteElo "2509"]
[BlackElo "2698"]
[TimeControl "180+1"]
[EndTime "10:41:35 PDT"]
[Termination "Game drawn - insufficient material"]

1. e4 {[%clk 0:03:00.9]} 1... c6 {[%clk 0:02:58.7]} 2. d4 {[%clk 0:03:00.3]}
2... d5 {[%clk 0:02:58.9]} 3. exd5 {[%clk 0:03:00.8]} 3... cxd5 {[%clk
0:02:58.9]} 4. Bd3 {[%clk 0:03:01.4]} 4... Nc6 {[%clk 0:02:59]} 5. c3 {[%clk
0:03:02.1]} 5... g6 {[%clk 0:02:58.5]} 6. Bf4 {[%clk 0:02:51]} 6... Nf6 {[%clk
0:02:57.1]} 7. Nf3 {[%clk 0:02:49.3]} 7... Bf5 {[%clk 0:02:55.5]} 8. Bxf5 {[%clk
0:02:43.2]} 8... gxf5 {[%clk 0:02:56.4]} 9. O-O {[%clk 0:02:39.1]} 9... e6
{[%clk 0:02:49]} 10. Nbd2 {[%clk 0:02:35.3]} 10... Bd6 {[%clk 0:02:47.1]} 11.
Bxd6 {[%clk 0:02:33.6]} 11... Qxd6 {[%clk 0:02:48]} 12. Qe2 {[%clk 0:02:34]}
12... O-O-O {[%clk 0:02:45.5]} 13. Ne5 {[%clk 0:02:18.7]} 13... Ng4 {[%clk
0:02:25.9]} 14. Nxg4 {[%clk 0:02:15.8]} 14... fxg4 {[%clk 0:02:26.2]} 15. Qxg4
{[%clk 0:02:16.3]} 15... Rdg8 {[%clk 0:02:25.6]} 16. Qf3 {[%clk 0:02:01.2]}
16... f5 {[%clk 0:02:14]} 17. Rfe1 {[%clk 0:01:59.6]} 17... Rg6 {[%clk
0:02:13.8]} 18. Kh1 {[%clk 0:01:46]} 18... h5 {[%clk 0:02:06]} 19. Re2 {[%clk
0:01:40.3]} 19... h4 {[%clk 0:02:04.6]} 20. Rg1 {[%clk 0:01:38.9]} 20... Rhg8
{[%clk 0:01:55.8]} 21. Nb3 {[%clk 0:01:37.4]} 21... b6 {[%clk 0:01:24.6]} 22.
Nc1 {[%clk 0:01:37]} 22... Kb7 {[%clk 0:01:14]} 23. Nd3 {[%clk 0:01:37]} 23...
Rg4 {[%clk 0:01:03.4]} 24. Qe3 {[%clk 0:01:04.4]} 24... Re4 {[%clk 0:01:00.4]}
25. Qd2 {[%clk 0:01:04.6]} 25... Reg4 {[%clk 0:00:45.4]} 26. f3 {[%clk
0:01:03.4]} 26... R4g7 {[%clk 0:00:39]} 27. Qf4 {[%clk 0:01:03.3]} 27... Qd7
{[%clk 0:00:21.6]} 28. Qxh4 {[%clk 0:00:48.5]} 28... Rh7 {[%clk 0:00:21.4]} 29.
Qf4 {[%clk 0:00:44.8]} 29... Rgh8 {[%clk 0:00:21.2]} 30. g3 {[%clk 0:00:44.3]}
30... Qf7 {[%clk 0:00:20.1]} 31. Qe3 {[%clk 0:00:34]} 31... Qh5 {[%clk
0:00:18.3]} 32. Rgg2 {[%clk 0:00:34.1]} 32... Re8 {[%clk 0:00:09.7]} 33. Nf4
{[%clk 0:00:32.8]} 33... Qf7 {[%clk 0:00:09.3]} 34. Nd3 {[%clk 0:00:26.9]} 34...
Nd8 {[%clk 0:00:07.1]} 35. Ne5 {[%clk 0:00:25.8]} 35... Qh5 {[%clk 0:00:06.9]}
36. Kg1 {[%clk 0:00:24.9]} 36... Rg8 {[%clk 0:00:06.9]} 37. Qf4 {[%clk
0:00:23.9]} 37... Qe8 {[%clk 0:00:06.9]} 38. a3 {[%clk 0:00:22.4]} 38... Qa4
{[%clk 0:00:06.8]} 39. Re1 {[%clk 0:00:22.6]} 39... Rhg7 {[%clk 0:00:06.8]} 40.
Qd2 {[%clk 0:00:20.7]} 40... Qe8 {[%clk 0:00:07.2]} 41. Qe2 {[%clk 0:00:19.9]}
41... Rf8 {[%clk 0:00:07.3]} 42. Nd3 {[%clk 0:00:20]} 42... Qh5 {[%clk
0:00:05.9]} 43. Nf4 {[%clk 0:00:19.9]} 43... Qh6 {[%clk 0:00:06.5]} 44. Qe5
{[%clk 0:00:18.3]} 44... Rf6 {[%clk 0:00:05.7]} 45. Qd6 {[%clk 0:00:17.8]} 45...
Qh8 {[%clk 0:00:05.7]} 46. Qe5 {[%clk 0:00:17.3]} 46... Qh6 {[%clk 0:00:04.3]}
47. a4 {[%clk 0:00:17.2]} 47... Rd7 {[%clk 0:00:03.8]} 48. b4 {[%clk 0:00:15.3]}
48... Nc6 {[%clk 0:00:04.3]} 49. Qe3 {[%clk 0:00:15.2]} 49... Re7 {[%clk
0:00:04.8]} 50. Nd3 {[%clk 0:00:14.6]} 50... Qxe3+ {[%clk 0:00:04]} 51. Rxe3
{[%clk 0:00:14.5]} 51... Nd8 {[%clk 0:00:04.2]} 52. Rf2 {[%clk 0:00:13.7]} 52...
Rc7 {[%clk 0:00:04.7]} 53. Nf4 {[%clk 0:00:12.3]} 53... a5 {[%clk 0:00:05.6]}
54. bxa5 {[%clk 0:00:11.5]} 54... bxa5 {[%clk 0:00:06.5]} 55. Rb2+ {[%clk
0:00:12]} 55... Ka6 {[%clk 0:00:07]} 56. Rb8 {[%clk 0:00:11.5]} 56... Nb7 {[%clk
0:00:05]} 57. Rxe6+ {[%clk 0:00:10.1]} 57... Rxe6 {[%clk 0:00:04.8]} 58. Nxe6
{[%clk 0:00:10.3]} 58... Rxc3 {[%clk 0:00:05.7]} 59. Kf2 {[%clk 0:00:10.4]}
59... Rc4 {[%clk 0:00:05.9]} 60. Ke3 {[%clk 0:00:09.6]} 60... Ka7 {[%clk
0:00:05.6]} 61. Rd8 {[%clk 0:00:08.7]} 61... Rxa4 {[%clk 0:00:06.2]} 62. Rxd5
{[%clk 0:00:07.5]} 62... Ra2 {[%clk 0:00:06.9]} 63. h4 {[%clk 0:00:07]} 63... a4
{[%clk 0:00:07.4]} 64. Rd7 {[%clk 0:00:07.2]} 64... Kb6 {[%clk 0:00:06.9]} 65.
Nc5 {[%clk 0:00:06.9]} 65... Nxc5 {[%clk 0:00:07.2]} 66. dxc5+ {[%clk
0:00:07.2]} 66... Kxc5 {[%clk 0:00:08.1]} 67. Kf4 {[%clk 0:00:07.7]} 67... a3
{[%clk 0:00:08.4]} 68. Ra7 {[%clk 0:00:07]} 68... Kb4 {[%clk 0:00:09]} 69. Kxf5
{[%clk 0:00:07]} 69... Rc2 {[%clk 0:00:09]} 70. h5 {[%clk 0:00:06.2]} 70... Rc5+
{[%clk 0:00:09.1]} 71. Ke4 {[%clk 0:00:03.7]} 71... Ra5 {[%clk 0:00:10]} 72.
Rb7+ {[%clk 0:00:04]} 72... Kc3 {[%clk 0:00:10.2]} 73. Rb1 {[%clk 0:00:04.2]}
73... Rxh5 {[%clk 0:00:10]} 74. g4 {[%clk 0:00:04.6]} 74... Ra5 {[%clk 0:00:10]}
75. f4 {[%clk 0:00:04.7]} 75... a2 {[%clk 0:00:10.4]} 76. Ra1 {[%clk 0:00:05]}
76... Kb2 {[%clk 0:00:11]} 77. Rxa2+ {[%clk 0:00:05.4]} 77... Kxa2 {[%clk
0:00:11.9]} 78. g5 {[%clk 0:00:05.9]} 78... Kb3 {[%clk 0:00:12.1]} 79. f5 {[%clk
0:00:06.5]} 79... Kc4 {[%clk 0:00:12]} 80. g6 {[%clk 0:00:07.2]} 80... Ra1
{[%clk 0:00:11.3]} 81. f6 {[%clk 0:00:07.1]} 81... Re1+ {[%clk 0:00:11.5]} 82.
Kf5 {[%clk 0:00:07.3]} 82... Kd5 {[%clk 0:00:12.3]} 83. g7 {[%clk 0:00:07.5]}
83... Rf1+ {[%clk 0:00:13.1]} 84. Kg6 {[%clk 0:00:06.9]} 84... Rg1+ {[%clk
0:00:13.7]} 85. Kf7 {[%clk 0:00:05.7]} 85... Ke5 {[%clk 0:00:14]} 86. g8=Q
{[%clk 0:00:05]} 86... Rxg8 {[%clk 0:00:13.6]} 87. Kxg8 {[%clk 0:00:05.5]} 87...
Kxf6 {[%clk 0:00:14.2]} 1/2-1/2

[Event "*** SCC Grand Prix: Titled Tuesday Blitz"]
[Site "Chess.com"]
[Date "2020.06.23"]
[Round "4"]
[White "IwkooO"]
[Black "MartinMatthiesen"]
[Result "1-0"]
[WhiteElo "2515"]
[BlackElo "2338"]
[TimeControl "180+1"]
[EndTime "10:41:50 PDT"]
[Termination "IwkooO won by resignation"]

1. e4 {[%clk 0:03:00.9]} 1... e5 {[%clk 0:02:56.6]} 2. Nf3 {[%clk 0:03:00.3]}
2... Nc6 {[%clk 0:02:56.9]} 3. Bb5 {[%clk 0:03:00]} 3... a6 {[%clk 0:02:57.2]}
4. Ba4 {[%clk 0:02:59.9]} 4... Nf6 {[%clk 0:02:57.5]} 5. O-O {[%clk 0:03:00.2]}
5... Be7 {[%clk 0:02:57.6]} 6. Re1 {[%clk 0:03:00]} 6... b5 {[%clk 0:02:57.8]}
7. Bb3 {[%clk 0:02:59.8]} 7... O-O {[%clk 0:02:58]} 8. h3 {[%clk 0:03:00.4]}
8... Bb7 {[%clk 0:02:56.2]} 9. d3 {[%clk 0:02:56]} 9... d6 {[%clk 0:02:52]} 10.
c3 {[%clk 0:02:42.9]} 10... Na5 {[%clk 0:02:44.7]} 11. Bc2 {[%clk 0:02:42.9]}
11... c5 {[%clk 0:02:45.3]} 12. Nbd2 {[%clk 0:02:42]} 12... Nc6 {[%clk
0:02:44.5]} 13. Nf1 {[%clk 0:02:39.9]} 13... Re8 {[%clk 0:02:44]} 14. Ng3 {[%clk
0:02:35.6]} 14... g6 {[%clk 0:02:43.2]} 15. a3 {[%clk 0:02:29.9]} 15... Bf8
{[%clk 0:02:41.8]} 16. b4 {[%clk 0:02:27.6]} 16... Bg7 {[%clk 0:02:21]} 17. Bb3
{[%clk 0:02:25]} 17... cxb4 {[%clk 0:01:55.6]} 18. axb4 {[%clk 0:02:23.2]} 18...
d5 {[%clk 0:01:52.8]} 19. Be3 {[%clk 0:02:14.2]} 19... h6 {[%clk 0:01:31.1]} 20.
Qd2 {[%clk 0:02:03.7]} 20... Kh7 {[%clk 0:01:30.8]} 21. Bc5 {[%clk 0:01:54.3]}
21... Qd7 {[%clk 0:01:27.6]} 22. Qa2 {[%clk 0:01:49.8]} 22... Nd8 {[%clk
0:01:10.1]} 23. Bb6 {[%clk 0:01:44]} 23... Rc8 {[%clk 0:01:04.2]} 24. Rac1
{[%clk 0:01:39.7]} 24... Qc6 {[%clk 0:00:41.4]} 25. Ba5 {[%clk 0:01:18.6]} 25...
Qd7 {[%clk 0:00:30.9]} 26. Re2 {[%clk 0:00:53.8]} 26... d4 {[%clk 0:00:26]} 27.
Bxd8 {[%clk 0:00:47.1]} 27... Rcxd8 {[%clk 0:00:20]} 28. Bxf7 {[%clk 0:00:47.3]}
28... Re7 {[%clk 0:00:19.8]} 29. Bb3 {[%clk 0:00:41.5]} 29... dxc3 {[%clk
0:00:20.2]} 30. Rxc3 {[%clk 0:00:40.4]} 30... Ne8 {[%clk 0:00:19.2]} 31. Nh4
{[%clk 0:00:28.5]} 31... Nc7 {[%clk 0:00:18.1]} 32. Qc2 {[%clk 0:00:17.2]} 32...
Ne6 {[%clk 0:00:17.1]} 33. Bxe6 {[%clk 0:00:17.4]} 33... Qxe6 {[%clk 0:00:17.4]}
34. Rc7 {[%clk 0:00:15.8]} 34... Rxc7 {[%clk 0:00:17.3]} 35. Qxc7 {[%clk
0:00:16]} 35... Rd7 {[%clk 0:00:18.2]} 36. Qc3 {[%clk 0:00:15.7]} 36... Qf6
{[%clk 0:00:17.8]} 37. Nf3 {[%clk 0:00:15.8]} 37... Qd6 {[%clk 0:00:18.2]} 38.
Rd2 {[%clk 0:00:15.9]} 38... Rc7 {[%clk 0:00:18.5]} 39. Qb2 {[%clk 0:00:15.7]}
39... Bf8 {[%clk 0:00:18.3]} 40. Kh2 {[%clk 0:00:15.8]} 40... Qxb4 {[%clk
0:00:18.4]} 41. Nxe5 {[%clk 0:00:15.8]} 41... Qxb2 {[%clk 0:00:17.9]} 42. Rxb2
{[%clk 0:00:16.5]} 42... Bg7 {[%clk 0:00:18.6]} 43. d4 {[%clk 0:00:16.5]} 43...
Bxe5 {[%clk 0:00:18.9]} 44. dxe5 {[%clk 0:00:17]} 44... Re7 {[%clk 0:00:18.6]}
45. f4 {[%clk 0:00:17.2]} 45... g5 {[%clk 0:00:19]} 46. Nf5 {[%clk 0:00:17.7]}
46... Re6 {[%clk 0:00:18.7]} 47. g3 {[%clk 0:00:14.9]} 47... Bxe4 {[%clk
0:00:18.3]} 48. Nd4 {[%clk 0:00:13.5]} 48... Re7 {[%clk 0:00:17.5]} 49. Rb4
{[%clk 0:00:11.7]} 49... gxf4 {[%clk 0:00:17.4]} 50. gxf4 {[%clk 0:00:12.6]}
50... Bd5 {[%clk 0:00:17.9]} 51. Nf5 {[%clk 0:00:11.2]} 51... Rc7 {[%clk
0:00:17]} 52. Ne3 {[%clk 0:00:09.8]} 52... Bb7 {[%clk 0:00:15.8]} 53. f5 {[%clk
0:00:07.9]} 53... Rc3 {[%clk 0:00:15.2]} 54. Ng4 {[%clk 0:00:05.9]} 54... Rc2+
{[%clk 0:00:15.1]} 55. Kg3 {[%clk 0:00:06.2]} 55... Rc5 {[%clk 0:00:15.3]} 56.
Kf4 {[%clk 0:00:06.1]} 56... a5 {[%clk 0:00:15.3]} 57. Rb2 {[%clk 0:00:05.3]}
57... Rc4+ {[%clk 0:00:15.7]} 58. Ke3 {[%clk 0:00:04.9]} 58... b4 {[%clk
0:00:16.2]} 59. Rd2 {[%clk 0:00:05.3]} 59... Rc3+ {[%clk 0:00:15.6]} 60. Kf4
{[%clk 0:00:04]} 60... Rc4+ {[%clk 0:00:15.8]} 61. Kg3 {[%clk 0:00:04.5]} 61...
Rc3+ {[%clk 0:00:15.9]} 62. Kh4 {[%clk 0:00:05]} 62... Rc7 {[%clk 0:00:15.8]}
63. Nf6+ {[%clk 0:00:04.5]} 63... Kg7 {[%clk 0:00:15.1]} 64. Ne8+ {[%clk
0:00:04]} 64... Kf8 {[%clk 0:00:15.3]} 65. Nxc7 {[%clk 0:00:04.9]} 65... Be4
{[%clk 0:00:15.4]} 66. Ne6+ {[%clk 0:00:05.4]} 66... Ke7 {[%clk 0:00:14.6]} 67.
Nd4 {[%clk 0:00:05.8]} 67... Bd5 {[%clk 0:00:14.4]} 68. f6+ {[%clk 0:00:06.2]}
68... Kf7 {[%clk 0:00:14.4]} 69. Rg2 {[%clk 0:00:06.9]} 69... b3 {[%clk
0:00:13.8]} 70. Rg7+ {[%clk 0:00:06.9]} 70... Kf8 {[%clk 0:00:14.1]} 71. e6
{[%clk 0:00:06.9]} 71... a4 {[%clk 0:00:11.7]} 72. e7+ {[%clk 0:00:05.1]} 72...
Ke8 {[%clk 0:00:12]} 73. Nf5 {[%clk 0:00:05.5]} 73... b2 {[%clk 0:00:10.9]} 74.
Nd6+ {[%clk 0:00:05.9]} 74... Kd7 {[%clk 0:00:11.2]} 75. e8=Q+ {[%clk
0:00:06.8]} 75... Kxd6 {[%clk 0:00:11.9]} 76. Qe7+ {[%clk 0:00:06.2]} 76... Kc6
{[%clk 0:00:12]} 77. Qc7+ {[%clk 0:00:07.1]} 77... Kb5 {[%clk 0:00:11.9]} 78.
Qb8+ {[%clk 0:00:07.7]} 78... Kc4 {[%clk 0:00:12]} 79. Qxb2 {[%clk 0:00:08.4]}
79... a3 {[%clk 0:00:12.2]} 80. Rc7+ {[%clk 0:00:09.1]} 80... Kd3 {[%clk
0:00:12]} 81. Qxa3+ {[%clk 0:00:09.7]} 81... Ke4 {[%clk 0:00:12.4]} 82. Qd6
{[%clk 0:00:09.9]} 82... Bf7 {[%clk 0:00:10.5]} 83. Re7+ {[%clk 0:00:10.2]}
83... Kf5 {[%clk 0:00:10.9]} 84. Qe5+ {[%clk 0:00:09.9]} 84... Kg6 {[%clk
0:00:10.3]} 85. Rxf7 {[%clk 0:00:10.5]} 85... Kxf7 {[%clk 0:00:10.4]} 86. Qe7+
{[%clk 0:00:11.1]} 86... Kg6 {[%clk 0:00:10.6]} 87. Qg7+ {[%clk 0:00:11.7]}
87... Kf5 {[%clk 0:00:10.6]} 88. f7 {[%clk 0:00:12.3]} 1-0

[Event "*** SCC Grand Prix: Titled Tuesday Blitz"]
[Site "Chess.com"]
[Date "2020.06.23"]
[Round "4"]
[White "Khvicha_Supatashvili"]
[Black "Matibar"]
[Result "1/2-1/2"]
[WhiteElo "2648"]
[BlackElo "2815"]
[TimeControl "180+1"]
[EndTime "10:41:52 PDT"]
[Termination "Game drawn by repetition"]

1. d4 {[%clk 0:03:00.9]} 1... f5 {[%clk 0:02:54.8]} 2. Nc3 {[%clk 0:03:00.1]}
2... d5 {[%clk 0:02:51.2]} 3. Bf4 {[%clk 0:02:59.4]} 3... a6 {[%clk 0:02:45.4]}
4. e3 {[%clk 0:02:58.6]} 4... Nf6 {[%clk 0:02:42.1]} 5. Nf3 {[%clk 0:02:58]}
5... e6 {[%clk 0:02:41]} 6. Bd3 {[%clk 0:02:57]} 6... Bd7 {[%clk 0:02:21.5]} 7.
O-O {[%clk 0:02:54.6]} 7... c5 {[%clk 0:02:21.7]} 8. dxc5 {[%clk 0:02:46.5]}
8... Bxc5 {[%clk 0:02:22.6]} 9. Ne2 {[%clk 0:02:46.5]} 9... Nc6 {[%clk
0:02:20.9]} 10. Ned4 {[%clk 0:02:45.6]} 10... O-O {[%clk 0:02:10.7]} 11. c4
{[%clk 0:02:43.3]} 11... Kh8 {[%clk 0:01:49.1]} 12. a3 {[%clk 0:02:37.1]} 12...
Qe7 {[%clk 0:01:43.5]} 13. b4 {[%clk 0:02:24.1]} 13... Ba7 {[%clk 0:01:40.4]}
14. b5 {[%clk 0:01:45.2]} 14... Nxd4 {[%clk 0:01:29.9]} 15. exd4 {[%clk
0:01:41.8]} 15... dxc4 {[%clk 0:01:29.6]} 16. Bxc4 {[%clk 0:01:41.1]} 16... Bxb5
{[%clk 0:01:15.2]} 17. Bxb5 {[%clk 0:01:39.2]} 17... axb5 {[%clk 0:01:16.1]} 18.
Qb3 {[%clk 0:01:38.4]} 18... Nd5 {[%clk 0:01:14.7]} 19. Be5 {[%clk 0:01:35.5]}
19... Qd7 {[%clk 0:01:14.9]} 20. Rfb1 {[%clk 0:01:20.1]} 20... Rfc8 {[%clk
0:01:09.5]} 21. h4 {[%clk 0:01:14.1]} 21... Bb6 {[%clk 0:01:02.7]} 22. h5 {[%clk
0:01:10.5]} 22... h6 {[%clk 0:01:00.8]} 23. Qd3 {[%clk 0:01:01.3]} 23... Rc3
{[%clk 0:00:49.4]} 24. Qd2 {[%clk 0:01:00.7]} 24... Kh7 {[%clk 0:00:48.2]} 25.
Qe2 {[%clk 0:00:44.7]} 25... Rcxa3 {[%clk 0:00:27]} 26. Rxa3 {[%clk 0:00:44.2]}
26... Rxa3 {[%clk 0:00:27.6]} 27. Qxb5 {[%clk 0:00:40.1]} 27... Qxb5 {[%clk
0:00:23.1]} 28. Rxb5 {[%clk 0:00:39.5]} 28... Ra1+ {[%clk 0:00:18.6]} 29. Kh2
{[%clk 0:00:39.1]} 29... Ra7 {[%clk 0:00:19.5]} 30. g3 {[%clk 0:00:33.3]} 30...
Kg8 {[%clk 0:00:19]} 31. Kg2 {[%clk 0:00:32.1]} 31... Kf7 {[%clk 0:00:19]} 32.
Bd6 {[%clk 0:00:30.2]} 32... Ke8 {[%clk 0:00:17.7]} 33. Be5 {[%clk 0:00:29.9]}
33... Kf7 {[%clk 0:00:16.7]} 34. Bd6 {[%clk 0:00:29.7]} 34... Ra5 {[%clk
0:00:13.8]} 35. Rb2 {[%clk 0:00:28]} 35... Ra6 {[%clk 0:00:13.3]} 36. Ne5+
{[%clk 0:00:26.6]} 36... Ke8 {[%clk 0:00:13.5]} 37. Nf3 {[%clk 0:00:25.1]} 37...
Kd7 {[%clk 0:00:11.3]} 38. Be5 {[%clk 0:00:24.8]} 38... Nf6 {[%clk 0:00:11.3]}
39. Rc2 {[%clk 0:00:17.2]} 39... Bd8 {[%clk 0:00:11]} 40. Rb2 {[%clk 0:00:13.8]}
40... b6 {[%clk 0:00:11.4]} 41. Rb5 {[%clk 0:00:09]} 41... Ra5 {[%clk
0:00:11.2]} 42. Rb3 {[%clk 0:00:07.7]} 42... Bc7 {[%clk 0:00:11.3]} 43. Bxf6
{[%clk 0:00:07.5]} 43... gxf6 {[%clk 0:00:11.2]} 44. Nh4 {[%clk 0:00:07.3]}
44... b5 {[%clk 0:00:10.5]} 45. d5 {[%clk 0:00:06.9]} 45... Bd6 {[%clk
0:00:08.3]} 46. dxe6+ {[%clk 0:00:06.2]} 46... Kxe6 {[%clk 0:00:09.2]} 47. Re3+
{[%clk 0:00:05.9]} 47... Kf7 {[%clk 0:00:09.8]} 48. Nxf5 {[%clk 0:00:05.7]}
48... Bf8 {[%clk 0:00:10.3]} 49. Nd4 {[%clk 0:00:05.5]} 49... b4 {[%clk
0:00:10]} 50. Rb3 {[%clk 0:00:05.1]} 50... Rd5 {[%clk 0:00:09.1]} 51. Nc2 {[%clk
0:00:04.8]} 51... Rb5 {[%clk 0:00:09.4]} 52. g4 {[%clk 0:00:05]} 52... Rb8
{[%clk 0:00:09.1]} 53. Kf3 {[%clk 0:00:04.2]} 53... Ke6 {[%clk 0:00:09.7]} 54.
Ne3 {[%clk 0:00:04.1]} 54... Ke5 {[%clk 0:00:09.4]} 55. Ke2 {[%clk 0:00:03.8]}
55... Kd4 {[%clk 0:00:09.7]} 56. Rd3+ {[%clk 0:00:02.7]} 56... Kc5 {[%clk
0:00:09.8]} 57. Rd5+ {[%clk 0:00:03.1]} 57... Kc6 {[%clk 0:00:10.2]} 58. Rf5
{[%clk 0:00:03.3]} 58... b3 {[%clk 0:00:10.3]} 59. Rxf6+ {[%clk 0:00:03.3]}
59... Kc5 {[%clk 0:00:10.9]} 60. Nd1 {[%clk 0:00:03.4]} 60... b2 {[%clk
0:00:11]} 61. Nxb2 {[%clk 0:00:02.9]} 61... Rxb2+ {[%clk 0:00:11.9]} 62. Kf3
{[%clk 0:00:03.4]} 62... Rb8 {[%clk 0:00:12.8]} 63. Rf5+ {[%clk 0:00:02.6]}
63... Kd6 {[%clk 0:00:13]} 64. Rf6+ {[%clk 0:00:02.8]} 64... Ke7 {[%clk
0:00:13]} 65. Rg6 {[%clk 0:00:02.9]} 65... Kf7 {[%clk 0:00:13.3]} 66. Kg2 {[%clk
0:00:03.8]} 66... Bg7 {[%clk 0:00:13.3]} 67. f4 {[%clk 0:00:03.6]} 67... Rh8
{[%clk 0:00:13.7]} 68. Kf3 {[%clk 0:00:03.8]} 68... Bf6 {[%clk 0:00:14]} 69. Ke4
{[%clk 0:00:03.9]} 69... Bg7 {[%clk 0:00:14.3]} 70. Kf5 {[%clk 0:00:04.8]} 70...
Rb8 {[%clk 0:00:14.2]} 71. Ke4 {[%clk 0:00:05]} 71... Rb5 {[%clk 0:00:14.6]} 72.
Kf3 {[%clk 0:00:05.2]} 72... Rb4 {[%clk 0:00:15.2]} 73. Kg3 {[%clk 0:00:05.2]}
73... Rb3+ {[%clk 0:00:15.5]} 74. Kg2 {[%clk 0:00:05.4]} 74... Rb2+ {[%clk
0:00:15.3]} 75. Kf3 {[%clk 0:00:05.6]} 75... Rb1 {[%clk 0:00:15.8]} 76. Ke4
{[%clk 0:00:05.8]} 76... Rf1 {[%clk 0:00:16.1]} 77. Kf5 {[%clk 0:00:05.8]} 77...
Rb1 {[%clk 0:00:15.9]} 78. Ke4 {[%clk 0:00:06]} 78... Rb4+ {[%clk 0:00:16.5]}
79. Kf3 {[%clk 0:00:06.2]} 79... Ra4 {[%clk 0:00:17.4]} 80. Ke3 {[%clk
0:00:05.9]} 80... Bf8 {[%clk 0:00:17.8]} 81. Kf3 {[%clk 0:00:05.9]} 81... Bg7
{[%clk 0:00:17.8]} 82. Ke3 {[%clk 0:00:05.9]} 82... Ra3+ {[%clk 0:00:16]} 83.
Ke4 {[%clk 0:00:05.5]} 83... Bf8 {[%clk 0:00:10.8]} 84. Kf5 {[%clk 0:00:04.9]}
84... Ra4 {[%clk 0:00:10.3]} 85. Ke5 {[%clk 0:00:04.4]} 85... Bg7+ {[%clk
0:00:10.2]} 86. Kf5 {[%clk 0:00:04.8]} 86... Rb4 {[%clk 0:00:10.1]} 87. g5
{[%clk 0:00:04]} 87... Rb5+ {[%clk 0:00:10.1]} 88. Kg4 {[%clk 0:00:03.9]} 88...
hxg5 {[%clk 0:00:10.1]} 89. fxg5 {[%clk 0:00:04.2]} 89... Rb4+ {[%clk
0:00:09.9]} 90. Kf5 {[%clk 0:00:04.3]} 90... Rb5+ {[%clk 0:00:09.4]} 91. Kg4
{[%clk 0:00:04.4]} 91... Rb4+ {[%clk 0:00:09.6]} 92. Kf5 {[%clk 0:00:04.7]}
92... Rb5+ {[%clk 0:00:08.8]} 93. Kg4 {[%clk 0:00:05]} 1/2-1/2